Cogmind - Beta 11.1 @@@ ROGUE MODE // 2022.05.19 @ 15:12:49 Player: Owlsley Result: Destroyed by G-47 Trooper with Particle Gun Performance ------------- Evolutions (0) 0 Regions Visited (2) 400 Robots Destroyed (33) 165 Value Destroyed (605) 605 Prototype IDs (0) 0 Alien Tech Used (0) 0 Bonus (0) 0 TOTAL SCORE: 1170 Bonus ------- None Cogmind --------- Core Integrity 0/250 Matter 290/300 Energy 105/125 System Corruption 0% Temperature Hot (295) Movement Walking (190) Ox1 Location -10/Mines Parts ------- > --- POWER (1) -------- Light Ion Engine > --- PROPULSION (2) --- Aluminum Leg > --- UTILITY (2) ------ Heat Sink Medium Storage Unit > --- WEAPON (2) ------- Beam Cannon Light Cannon > --- INVENTORY (10) --- High-capacity Battery (250) Weight Redist. System Structural Scanner Sensor Array Shield Generator Shield Generator Shield Generator Grenade Launcher Grenade Launcher Peak State ------------ > --- POWER ------------ Ion Engine > --- PROPULSION ------- Aluminum Leg Aluminum Leg > --- UTILITY ---------- Small Storage Unit Light Armor Plating > --- WEAPON ----------- Medium Laser Medium Laser > --- INVENTORY -------- High-capacity Battery Weight Redist. System Sensor Array Shield Generator Shield Generator Light Cannon Grenade Launcher [Rating: 8] Favorites ----------- Power Light Ion Engine Engine Light Ion Engine Propulsion Aluminum Leg Leg Aluminum Leg Utility Medium Storage Unit Device Heat Sink Storage Medium Storage Unit Protection Light Armor Plating Weapon Medium Laser Energy Gun Medium Laser Energy Cannon Beam Cannon Launcher Grenade Launcher Build | -11 -10 -10 ------- Run | Scr Mat Min Slots Evolved . | . . . Power . | . . . Propulsion . | . . . Utility . | . . . Weapon . | . . . Parts Attached 18 | 1 14 3 Power 4 | . 3 1 Engine 4 | . 3 1 Core . | . . . Reactor . | . . . Propulsion 2 | . 2 . Treads . | . . . Leg 2 | . 2 . Wheel . | . . . Hover . | . . . Flight . | . . . Utility 5 | 1 3 1 Device 3 | 1 1 1 Storage 1 | . 1 . Processor . | . . . Hackware . | . . . Protection 1 | . 1 . Artifact . | . . . Weapon 7 | . 6 1 Energy Gun 2 | . 2 . Energy Cannon 2 | . 2 . Ballistic Gun . | . . . Ballistic Cannon 1 | . . 1 Launcher 2 | . 2 . Special Weapon . | . . . Impact Weapon . | . . . Slashing Weapon . | . . . Piercing Weapon . | . . . Special Melee Weapon . | . . . Unidentified Prototypes . | . . . Parts Lost 5 | . 2 3 Power 1 | . 1 . Propulsion 1 | . . 1 Utility 2 | . 1 1 Weapon 1 | . . 1 Highest Loss Streak 2 | . 1 2 To Critical Strikes . | . . . Average Slot Usage (%) 95 | . 93 99 Engine 10 | . 9 14 Leg 27 | . 28 27 Device 9 | . 8 13 Storage 14 | . 14 14 Protection 2 | . 4 . Energy Gun 18 | . 25 . Energy Cannon 9 | . 2 28 Naked Turns . | . . . Heaviest Build 20 | 15 20 20 Greatest Support 20 | 20 20 20 Greatest Overweight (x) 1 | . . 1 Average Overweight (x) . | . . . Largest Inventory Capacity 10 | 8 10 10 Average Capacity 9 | 8 9 10 Most Carried 10 | 7 10 10 Average Carried 9 | 6 9 10 Final Capacity 10 | 8 10 10 Final Carried 10 | 6 10 9 Class Distribution -------------------- 60% | Mutant 39% | Scavenger-Mutant Dominant Class ---------------- Mutant | -10/Materials Scavenger-Mutant | -10/Mines Resources | -11 -10 -10 ----------- Run | Scr Mat Min Matter Collected 385 | 210 165 10 Remotely . | . . . Salvage Created 991 | 8 701 282 Parts 58 | 3 43 12 Haulers Intercepted 2 | . 2 . Recyclers Shooed 1 | . 1 . Parts Field Recycled . | . . . Retrieved Matter . | . . . Parts Self-Destructed . | . . . Prevented . | . . . Kills | -11 -10 -10 ------- Run | Scr Mat Min Combat Hostiles Destroyed 18 | . 13 5 Guns 7 | . 7 . Cannons 5 | . . 5 AOE 5 | . 5 . Classes Destroyed 8 | 1 7 . Worker 5 | . 5 . Builder 1 | . 1 . Tunneler 2 | 1 . 1 Hauler 2 | . 2 . Recycler 2 | . 1 1 Watcher 3 | . 3 . Swarmer 6 | . 6 . Grunt 12 | . 7 5 Best Kill Streak 6 | 1 6 2 Combat Bots Only 3 | . 3 2 Max Kills in Single Turn 3 | 1 3 1 Gunslinging . | . . . Exploded 3 | . 3 . Melee . | . . . Uniques/NPCs Destroyed . | . . . Combat | -11 -10 -10 -------- Run | Scr Mat Min Damage Taken 909 | . 468 441 Core 255 | . 85 170 Absorbed by Shields . | . . . Core Remaining (%) 100 | 100 . . Volleys Fired 82 | 2 48 32 Largest 2 | 2 2 2 Hottest 120 | 90 100 120 Shots Fired 159 | 4 93 62 Gun 94 | 4 90 . Cannon 62 | . . 62 Launcher 3 | . 3 . Special . | . . . Kinetic . | . . . Thermal 138 | 2 74 62 Explosive 3 | . 3 . Electromagnetic 18 | 2 16 . Robot Hit Streak 11 | 3 11 5 Robot Miss Streak 5 | 1 5 3 Penetration Max . | . . . Secondary Targets 1 | . 1 . Max Gunslinging Chain 1 | . 1 . Shots Hit Robots 95 | 3 55 37 Core Hits 46 | 1 35 10 Critical Kills . | . . . Critical Parts Destroyed . | . . . Critical Strikes 6 | . 6 . Burn 6 | . 6 . Melee Attacks . | . . . Impact . | . . . Slashing . | . . . Piercing . | . . . Sneak Attacks . | . . . Combat Hostiles . | . . . Follow-up Attacks . | . . . Damage Inflicted 1793 | 65 1069 659 Guns 788 | 40 748 . Cannons 659 | . . 659 Explosions 342 | 25 317 . Melee . | . . . Ramming 4 | . 4 . Kinetic . | . . . Thermal 1292 | 37 596 659 Explosive 317 | . 317 . Electromagnetic 180 | 28 152 . Impact . | . . . Slashing . | . . . Piercing . | . . . Highest Corruption . | . . . Average Corruption . | . . . Corruption Purged . | . . . Corruption Blocked . | . . . Overload Shots . | . . . Overflow Damage 19 | . 14 5 Projectiles 5 | . . 5 Explosions 14 | . 14 . Melee . | . . . Knockbacks . | . . . Impact . | . . . Kinetic . | . . . Secondary . | . . . Self-Inflicted Damage 16 | . 16 . Shots 1 | . 1 . Rammed . | . . . Targets Rammed 1 | . 1 . Kicked 1 | . 1 . Crushed . | . . . Highest Temperature 309 | 60 280 309 Average Temperature 88 | 30 59 136 Received Heat Transfer 480 | . 174 306 Effects 2 | . . 2 Energy Bleed 2 | . . 2 Siege Activations . | . . . Robots Corrupted . | . . . Combat Hostiles . | . . . Parts Fried 2 | . 2 . Impact Corruptions . | . . . Robots Melted 1 | . 1 . Combat Hostiles 1 | . 1 . Parts Melted 5 | . 4 1 Heat Transferred 3602 | 87 2146 1369 Parts Sabotaged . | . . . Parts Stolen . | . . . Parts Stripped . | . . . Power Chain Reactions 1 | 1 . . Missiles Intercepted . | . . . Alert | -11 -10 -10 ------- Run | Scr Mat Min Peak Influence 293 | 5 293 80 Initial 3 | . 3 . Average 70 | 5 90 22 Maximum Alert Level 1 | . 1 . Low Security (%) 97 | 100 95 100 Level 1 2 | . 4 . Level 2 . | . . . Level 3 . | . . . Level 4 . | . . . Level 5 . | . . . High Security . | . . . Max Security . | . . . Squads Dispatched 2 | . 2 . Investigation 1 | . 1 . Extermination . | . . . Reinforcement 1 | . 1 . Assault . | . . . Garrison . | . . . Intercept . | . . . Searches Triggered . | . . . Construction Impeded . | . . . Haulers Reinforced . | . . . Active Scanning Responses . | . . . Cargo Convoy Interrupts . | . . . Stealth | -11 -10 -10 --------- Run | Scr Mat Min Distress Signals 2 | . 2 . Communications Jammed . | . . . Distress Signals . | . . . Times Spotted 27 | . 20 7 Peak Tracking Total 4 | . 4 2 Tactical Retreats 2 | . 1 1 Traps | -11 -10 -10 ------- Run | Scr Mat Min Traps Triggered 1 | . 1 . Indirectly . | . . . Trap Hack Attempts . | . . . Triggered . | . . . Disarmed . | . . . Reprogrammed . | . . . Reused . | . . . Traps Extracted . | . . . Installed . | . . . Triggered . | . . . Machines | -11 -10 -10 ---------- Run | Scr Mat Min Machines Disabled 1 | . . 1 Max in Single Turn 1 | . . 1 Machines Sabotaged . | . . . Garrisons Compromised . | . . . Overloaded Fab Kills . | . . . Hacking | -11 -10 -10 --------- Run | Scr Mat Min Machines Accessed 6 | . 6 . Terminals 5 | . 5 . Fabricators . | . . . Repair Stations . | . . . Recycling Units 1 | . 1 . Scanalyzers . | . . . Garrison Access . | . . . Total Hacks 14 | . 14 . Successful 8 | . 8 . Failed 5 | . 5 . Catastrophic 1 | . 1 . Database Lockouts 1 | . 1 . Manual 8 | . 8 . Terminals 12 | . 12 . Fabricators . | . . . Repair Stations . | . . . Recycling Units 2 | . 2 . Scanalyzers . | . . . Garrison Access . | . . . Terminal Hacks 6 | . 6 . Part Schematic 1 | . 1 . Robot Analysis 2 | . 2 . Branch Access Points 1 | . 1 . Unreport Threat 2 | . 2 . Fabricator Hacks . | . . . Repair Station Hacks . | . . . Recycling Unit Hacks 1 | . 1 . Retrieve Components 1 | . 1 . Scanalyzer . | . . . Garrison Access Hacks . | . . . Unauthorized Hacks 1 | . 1 . Terminals . | . . . Fabricators . | . . . Repair Stations . | . . . Recycling Units 1 | . 1 . Mask 1 | . 1 . Scanalyzers . | . . . Garrison Access . | . . . Data Cores Recovered . | . . . Used . | . . . Hacking Detections 6 | . 6 . Full Trace Events . | . . . Feedback Events . | . . . Feedback Blocked . | . . . Robot Schematics Acquired . | . . . Robots Built . | . . . Authchips . | . . . Time . | . . . Total Robot Build Rating . | . . . Part Schematics Acquired 1 | . 1 . Parts Built . | . . . Authchips . | . . . Time . | . . . Total Part Build Rating . | . . . Parts Repaired . | . . . Time . | . . . Parts Recycled . | . . . Recycled Matter . | . . . Retrieved Matter . | . . . Retrieved Components 3 | . 3 . Parts Scanalyzed . | . . . Part Schematics Acquired . | . . . Parts Damaged . | . . . Bothacking | -11 -10 -10 ------------ Run | Scr Mat Min Used RIF Installer . | . . . Robots Hacked . | . . . Non-combat . | . . . Combat . | . . . Robot Hacks Applied . | . . . Relay Couplers Released . | . . . Fabnet Peak Effective % . | . . . Robots Rewired . | . . . Allies Hacked . | . . . Hacks Repelled . | . . . Allies | -11 -10 -10 -------- Run | Scr Mat Min Total Allies . | . . . Largest Group . | . . . Highest-Rated Group . | . . . Highest-Rated Ally . | . . . Total Orders . | . . . Ally Attacks . | . . . Total Damage . | . . . Kills . | . . . Allies Corrupted . | . . . Allies Melted . | . . . Intel | -11 -10 -10 ------- Run | Scr Mat Min Robot Analysis Total 2 | . 2 . Derelict Logs Recovered 2 | . . 2 Drone Launches . | . . . Drone Recoveries . | . . . Exploration | -11 -10 -10 ------------- Run | Scr Mat Min Turns Passed 1886 | 18 1335 533 Spaces Moved 1273 | 9 935 329 Core . | . . . Treads . | . . . Legs 1273 | 9 935 329 Wheels . | . . . Hover . | . . . Flight . | . . . Fastest Speed 120 | 120 120 120 Average Speed 120 | 120 120 120 Slowest Speed 190 | 120 120 190 Overloaded Moves . | . . . Propulsion Burnouts . | . . . Robots Hopped . | . . . Cave-ins Triggered . | . . . Exploration Rate (%) 59 | 2 96 81 Regions Visited 2 Branch Regions 1 Pre-discovered Areas 2 | . . 2 Known Exits Taken 1 | . 1 . Unknown Exits Taken 1 | 1 . . Scrap Searched 2 | . . 2 Spaces Dug . | . . . Terrain Destroyed 23 | 5 18 . Melee . | . . . Projectile . | . . . AOE 23 | 5 18 . Terrain Rammed . | . . . Walls Destroyed . | . . . Machines Disabled . | . . . Actions | -11 -10 -10 --------- Run | Scr Mat Min Total 1476 | 12 1058 406 Wait 72 | . 33 39 Move 1271 | 8 934 329 Hop . | . . . Pick Up 15 | 1 13 1 Fast Attach 6 | . 5 1 Attach 4 | 1 2 1 Detach . | . . . Swap 8 | . 7 1 Drop 17 | . 15 2 Fire 82 | 2 48 32 Melee . | . . . Ram . | . . . Kick 1 | . 1 . Crush . | . . . Escape Stasis . | . . . Rewire . | . . . Trap . | . . . Miscellaneous . | . . . Route ------- -11/Scrapyard -10/Materials (discovered 5 exits: [*Mat x3] / *Min x2) -10/Mines (discovered 2 exits: [*Mat x2]) History --------- Turn | Location | Event 1 | -11/Scrapyard | Discovered new exit (range 2) 19 | -11/Scrapyard | Entered Materials 19 | -10/Materials | Discovered new exit (range 8) 140 | -10/Materials | Identified exit to Mines 304 | -10/Materials | Build established: Mutant 439 | -10/Materials | Discovered new exit (range 15) 509 | -10/Materials | Central database locked down 688 | -10/Materials | Discovered new exit (range 16) 971 | -10/Materials | Discovered new exit (range 15) 1354 | -10/Materials | Entered Mines 1377 | -10/Mines | Learned location of Zion (-7) 1417 | -10/Mines | Build established: Scavenger-Mutant 1486 | -10/Mines | YI-UF0 nonchalantly dropped a Grenade Launcher on the ground 1495 | -10/Mines | Learned 2 Materials zone layouts 1740 | -10/Mines | Core integrity fell below 50% 1764 | -10/Mines | Discovered new exit (range 13) 1784 | -10/Mines | Learned location of Storage (-7) 1810 | -10/Mines | Discovered new exit (range 6) 1877 | -10/Mines | Core integrity fell below 20% 1887 | -10/Mines | Destroyed by G-47 Trooper with Particle Gun Last Messages --------------- 01760_ G-47 Trooper destroyed. 01764_ EXIT=FOUND 01769_ Acquired Heat Sink. 01784_ A derelict emerges from the shadows: "Are any of them following you? I'm here trying to lose some heat after our second raid on Storage failed. Whatever you do stay away from that place, they've tightened security following our previous successful raids." World map updated: -7/Storage. 01786_ KV-QCR(g): "We scattered so the Unaware couldn't effectively use their advantage in numbers, and I suggest you do the same." 01786_ KV-QCR(g) slips back into the shadows. 01810_ EXIT=FOUND 01834_ G-34 Mercenary destroyed. 01834_ Laser Drill disabled. 01863_ Destroyed Lgt. Nuclear Core. 01870_ Aluminum Leg destroyed. 01870_ Critical hit (Burn: +37). 01876_ Overheating: Energy bleed (-13). 01881_ Beam Cannon destroyed. 01883_ Critical hit (Burn: +37). Map ----- +----------------------------------------------------+ | | | | | | | | | | | | | | | | | | | | | | | ?????????????????????????????????????????????????? | | ???????????????????#?????????????????????????????? | | ???????????#?????##T?????????????????????????????? | | ???????????# ???? ?????????????????????????????? | | ???????????# ??? ???????????####??????????????? | | ???????????# """ ??????????## ##?????????????? | | ???????????# """ ??????????# ####??????????? | | ???????????# """ #?????????# #??????????? | | ?????????### #????????## #???###????? | | ?????????? < #????????# #???? ????? | | ???????????# #????????# ??????< ????? | | ???????????# #?????????# #??????? ????? | | ???????????# #?????????## #??????? ????? | | ???????????# """ ########???# #??????? ????? | | ???????????# "" % @ #??## ###????? ????? | | ???????????# """ ######g#### ##????# #????? | | ???????????# #????# ## ##???# #????? | | ??####?###?####### ##????# ##### #????? | | ### ## ######??# ??????# ## #????? | | ##?# ???# ### # #????? | | ## ####???# ####?### [%#????? | | ## #????#????????## ##*#????? | | ### #??????????????# ###=#????? | | #?# ^ # ^ ##?????????????# ##?#%#????? | | #?# #?##??????????????# #?## #????? | | #?# ^ ^ #?????????????????## #?# #????? | | ### ##^ #????????????????# #?# ##????? | | ??????????????# ##?# #?????? | | ### ##?#####?????????????## #??# #?????? | | #?## #?????????????????????# #??# #?????? | | #??# ## ##?????????????????##### ##??# ##????? | | #### #?###??????????????????? #???## ###??? | | # #??????????????????????????# #####!] #??? | | #??????????????????????????# #??? | | #????????????????????## ### ##### ! #??? | | # ??????????????????# #??##] ##??? | | ??? ????????????????????# #########???? | | ??? ?????????????????????# #???????? | | ???# #?????????????????????# #???????? | +----------------------------------------------------+ Best States ------------- Heat Dissipation 35 Energy Generation 10 Energy Capacity 250 Matter Stores 300 Matter Capacity 300 Sight Range 16 Terrain Scan Density 10 Armor Coverage 150 Evasion (%) 55 Item Schematics ----------------- Med. Storage Unit | -10/Materials | Hacked Robot Schematics ------------------ None Fabricated ------------ Nothing Alien Tech Used ----------------- None Achievements -------------- None Challenges ------------ None Game ------ Seed LinkedInsulationLog Manual? 0 Play Time 00:12:21 Cumulative 305.2 hours Start 2022.05.19 @ 15:00:28 End 2022.05.19 @ 15:12:49 Sessions 1 Manual Loads 0 Difficulty Rogue Special Mode None Game No. 224 Rogue 196 Adventurer 10 Explorer 18 Win Type - Total 39 Types 17/1/3/10/1/0/3/1/3 Lore% 81 Gallery% 87 Achievement% 75 Wizard Run 0 Options --------- ASCII 0 Keyboard 0 Movement Numpad Keybinds 0 Fullscreen 1 Font 18/SmallcapsGlow Map View 76x50 Tactical HUD 1 Map Filters NONE Filters NONE Steam 1 RUN: afb016f1-afd0-4e79-bb58-4073bd7bee8f